bitfinex-derivatives/quotes_BTCF0:USTF0_20210109
["timestamp","ask_amount","ask_price","bid_price","bid_amount"]
[1610175177149,0.81293883,39360.0,39358.0,0.13632608]
[1610175177548,0.81293883,39360.0,39359.0,0.0079784]
[1610175177750,0.7692245,39363.0,39359.0,0.0079784]
[1610175178252,1.03736354,39360.0,39359.0,0.0079784]
[1610175178450,0.67693095,39360.0,39359.0,0.0079784]
[1610175178850,0.81325703,39360.0,39359.0,0.0079784]
[1610175179050,0.81325703,39360.0,39359.0,0.00021856]
[1610175179451,1.58300113,39360.0,39359.0,0.00021856]
[1610175179652,3.1377,39352.0,39347.0,0.00798021]
[1610175179852,3.1377,39352.0,39347.0,0.00776159]
[1610175180053,0.67785994,39348.0,39347.0,0.00776159]
[1610175180351,0.67785994,39348.0,39337.0,0.00798101]
[1610175180553,1.44814017,39348.0,39337.0,0.00798101]
[1610175180752,1.44814017,39348.0,39347.0,0.00798104]
[1610175180952,1.58446625,39348.0,39346.0,0.13632608]
[1610175181153,1.58446625,39348.0,39347.0,0.00021847]
[1610175181352,1.43624017,39348.0,39347.0,0.00021847]
[1610175181552,1.43624017,39348.0,39347.0,0.00798107]
[1610175181753,0.66595994,39348.0,39347.0,0.00798107]
[1610175182354,0.77152216,39354.0,39347.0,0.00798107]
[1610175182755,0.37239266,39348.0,39347.0,0.00798107]
[1610175183155,0.13632608,39349.0,39347.0,0.00798107]
[1610175183557,1.14432923,39348.0,39347.0,0.00798107]
[1610175183956,1.60753669,39348.0,39347.0,0.00798107]
[1610175184258,1.59593669,39348.0,39347.0,0.00798107]
[1610175184458,1.23510604,39348.0,39347.0,0.00798107]
[1610175184760,1.60757049,39348.0,39347.0,0.00798107]
[1610175184959,1.60757049,39348.0,39347.0,0.00798105]
[1610175185461,0.46320746,39348.0,39347.0,0.00798105]
[1610175187362,0.45120746,39348.0,39347.0,0.00798105]
[1610175187963,0.82359966,39348.0,39347.0,0.00798105]
[1610175188465,0.45120746,39348.0,39347.0,0.00798105]
[1610175189466,4.56840746,39348.0,39347.0,0.00798105]
[1610175189667,4.56840746,39348.0,39336.0,0.08215]
[1610175189668,5.34035601,39348.0,39337.0,0.00798063]
[1610175189866,5.34035601,39348.0,39347.0,0.00021845]
[1610175190066,4.1172,39348.0,39338.0,0.00798111]
[1610175190466,4.1057,39348.0,39337.0,0.00798141]
[1610175190668,4.1057,39348.0,39339.0,0.00798178]
[1610175190868,0.13632608,39340.0,39338.0,0.00798195]
[1610175191267,0.13632608,39340.0,39337.0,0.13632608]
[1610175191470,0.13632608,39340.0,39339.0,0.00798179]
[1610175191668,0.13632608,39340.0,39338.0,0.00798186]
[1610175191869,0.50883778,39340.0,39338.0,0.00798186]
[1610175192069,0.50883778,39340.0,39339.0,0.00798191]
[1610175192270,0.13632608,39340.0,39339.0,0.00798191]
[1610175192470,0.13632608,39340.0,39338.0,0.00798198]
[1610175192671,0.50883252,39340.0,39338.0,0.00798198]
[1610175192871,0.50883252,39340.0,39339.0,0.00798191]
[1610175193071,0.13632608,39340.0,39339.0,0.00798191]
[1610175193271,0.50883313,39340.0,39338.0,0.00798183]
[1610175193470,0.50883313,39340.0,39339.0,0.00798195]
[1610175193676,0.49623313,39340.0,39339.0,0.00798195]
[1610175193872,0.49623313,39340.0,39338.0,0.00798177]
[1610175194074,0.49623313,39340.0,39339.0,0.00798173]
[1610175194571,0.93963313,39340.0,39339.0,0.00776324]
[1610175194976,0.56712608,39340.0,39339.0,0.00021849]
[1610175195172,0.56712608,39340.0,39337.0,0.00021849]
[1610175195372,0.93963599,39340.0,39339.0,0.00021849]
[1610175195571,0.93963599,39340.0,39337.0,0.00021849]
[1610175196172,1.71180273,39340.0,39336.0,0.08215]
[1610175196373,1.71180273,39340.0,39338.0,0.0002185]
[1610175196576,0.37251492,39339.0,39338.0,0.0002185]
[1610175196772,0.36061492,39339.0,39330.0,0.0079822]
[1610175196973,0.36061492,39339.0,39338.0,0.00798218]
[1610175197175,1.21556674,39340.0,39333.0,0.13632608]
[1610175197374,0.37251606,39338.0,39333.0,0.13632608]
[1610175197773,0.3725157,39339.0,39334.0,0.00798217]
[1610175198574,0.7722071,39342.0,39334.0,0.00798217]
[1610175198975,0.77212843,39343.0,39341.0,0.13632608]
[1610175199377,0.77210198,39344.0,39342.0,0.00798089]
[1610175199777,0.37245541,39343.0,39342.0,0.00798089]
[1610175200077,0.37245865,39344.0,39342.0,0.00798089]
[1610175200478,0.55601074,39343.0,39342.0,0.00798089]
[1610175200878,1.32820368,39343.0,39342.0,0.00798089]
[1610175201379,2.00781103,39343.0,39338.0,0.00798162]
[1610175201782,1.23569211,39339.0,39338.0,0.00798162]
[1610175202178,1.23569211,39339.0,39333.0,0.00798177]
[1610175202378,1.22419211,39339.0,39333.0,0.00798177]
[1610175202579,0.55611435,39334.0,39332.0,0.09051]
[1610175202978,0.12402608,39333.0,39332.0,0.22683608]
[1610175203379,1.05267884,39333.0,39332.0,0.22683608]
[1610175203580,1.05267884,39333.0,39332.0,0.23481799]
[1610175203979,0.68017349,39333.0,39332.0,0.23481799]
[1610175204781,1.05268217,39333.0,39332.0,0.23481799]
[1610175205980,1.04108217,39333.0,39332.0,0.23481799]
[1610175206481,0.66857349,39333.0,39332.0,0.23481799]
[1610175206884,0.11242608,39333.0,39332.0,0.23481799]
[1610175207482,0.66861258,39333.0,39332.0,0.23481799]
[1610175207881,1.04112261,39333.0,39332.0,0.23481799]
[1610175209184,1.02902261,39333.0,39332.0,0.23481799]
[1610175212287,1.01722261,39333.0,39332.0,0.23481799]
[1610175214890,0.92869653,39333.0,39332.0,0.23481799]
[1610175215288,0.5442865,39333.0,39332.0,3.49611799]
[1610175215688,0.77250939,39343.0,39332.0,3.52016085]
[1610175216090,0.77250939,39343.0,39333.0,0.03202034]
[1610175216291,0.55864975,39344.0,39333.0,0.03202034]
[1610175216692,0.37242137,39346.0,39333.0,0.03202034]
[1610175217094,0.37242137,39346.0,39345.0,0.13632608]
[1610175217495,0.37242137,39346.0,39345.0,0.14430584]
[1610175218095,0.46343807,39347.0,39345.0,0.14430584]
[1610175218294,0.46343807,39347.0,39345.0,0.16833954]
[1610175218493,0.46333031,39349.0,39346.0,0.00797832]
[1610175219196,0.37235929,39356.0,39346.0,0.00797832]
[1610175219695,0.2785,39357.0,39346.0,0.00797832]
[1610175220099,0.37233373,39356.0,39346.0,0.00797832]
[1610175221094,0.37233373,39356.0,39355.0,0.13632608]
[1610175221596,0.36043373,39356.0,39355.0,0.14408598]
[1610175221796,0.36043373,39356.0,39355.0,0.14430437]
[1610175222699,1.03942439,39356.0,39355.0,0.14430437]
[1610175222996,1.81099093,39356.0,39355.0,0.14430437]
[1610175223197,1.94731701,39356.0,39355.0,0.14430437]
[1610175224498,1.93581701,39356.0,39355.0,0.13654447]
[1610175225999,5.20301701,39356.0,39355.0,0.13654447]
[1610175226802,5.76161363,39356.0,39355.0,0.13654447]
[1610175227500,5.75001363,39356.0,39355.0,0.13654447]
[1610175228202,5.75001363,39356.0,39355.0,0.14430507]
[1610175228602,5.75001363,39356.0,39355.0,0.13654447]
[1610175229405,5.75001363,39356.0,39355.0,0.1443052]
[1610175230306,5.75001363,39356.0,39355.0,0.13654447]
[1610175230707,5.73811363,39356.0,39355.0,0.14430517]
[1610175230907,5.73811363,39356.0,39355.0,0.13654447]
[1610175231108,5.73811363,39356.0,39355.0,0.14430516]
[1610175231507,5.73811363,39356.0,39355.0,0.00797908]
[1610175231707,5.73811363,39356.0,39355.0,0.00021839]
[1610175232107,2.47091363,39356.0,39344.0,0.00798013]
[1610175232308,3.33541737,39356.0,39344.0,0.00798013]
[1610175232508,2.77682075,39356.0,39344.0,0.00798013]
[1610175232707,3.9653,39345.0,39344.0,0.00798013]
[1610175232907,4.64462267,39345.0,39344.0,0.00798013]
[1610175233109,4.78094875,39345.0,39344.0,0.00798013]
[1610175233308,4.78094875,39345.0,39334.0,0.13632608]
[1610175233508,6.48419859,39345.0,39344.0,0.00798131]
[1610175233708,6.47259859,39345.0,39335.0,0.00798178]
[1610175234508,0.67942367,39336.0,39335.0,0.00798178]
[1610175235109,0.81574975,39336.0,39335.0,0.00798178]
[1610175235309,1.27504975,39336.0,39335.0,0.00798178]
[1610175235712,1.64755842,39336.0,39335.0,0.00798178]
[1610175236010,1.18825842,39336.0,39335.0,0.00798178]
[1610175236210,1.05193234,39336.0,39335.0,0.00798178]
[1610175236411,0.37250867,39336.0,39335.0,0.00798178]
[1610175236611,0.37250867,39336.0,39335.0,0.0320336]
[1610175236911,0.66687906,39340.0,39335.0,0.0320336]
[1610175237111,0.66687906,39340.0,39339.0,0.13632608]
[1610175237311,0.77195122,39345.0,39339.0,0.13632608]
[1610175237511,0.77195122,39345.0,39339.0,0.14430604]
[1610175237712,0.09726,39347.0,39340.0,0.00797978]
[1610175238113,0.37239855,39346.0,39340.0,0.00797978]
[1610175239113,0.37239855,39346.0,39345.0,0.13632608]
[1610175239524,0.37239855,39346.0,39345.0,0.14430537]
[1610175240014,0.36049855,39346.0,39345.0,0.14430537]
[1610175240515,0.91644958,39346.0,39345.0,0.14430537]
[1610175243118,0.90454958,39346.0,39345.0,0.14430537]
[1610175246121,0.89284958,39346.0,39345.0,0.14430537]
[1610175248225,5.33868922,39346.0,39345.0,0.14430537]
[1610175248525,6.36071597,39346.0,39345.0,0.14430537]
[1610175249128,6.49704205,39346.0,39345.0,0.00797929]
[1610175249328,6.48514205,39346.0,39345.0,0.00797929]
[1610175249527,6.48514205,39346.0,39342.0,0.00797993]
[1610175249829,2.81144205,39346.0,39342.0,0.00797993]
[1610175250229,1.79175908,39343.0,39342.0,0.00797993]
[1610175252233,1.78025908,39343.0,39342.0,0.00797993]
[1610175252434,2.15273473,39343.0,39342.0,0.00797993]
[1610175252733,1.78025908,39343.0,39342.0,0.00797993]
[1610175253133,2.1527357,39343.0,39342.0,0.00797993]
[1610175253534,1.78025908,39343.0,39342.0,0.00797993]
[1610175253935,6.11936099,39343.0,39342.0,0.00797993]
[1610175254336,5.74685908,39343.0,39342.0,0.00797993]
[1610175254737,6.6118198,39343.0,39342.0,0.00797993]
[1610175254937,7.54310345,39343.0,39342.0,0.00797993]
[1610175255337,6.66654273,39343.0,39331.0,0.13632608]
[1610175255737,7.5316235,39343.0,39342.0,0.0064297]
[1610175255937,8.61292958,39343.0,39332.0,0.00776478]
[1610175256136,8.61292958,39343.0,39342.0,0.00021742]
[1610175256336,5.04790608,39343.0,39342.0,0.00021742]
[1610175256536,5.04790608,39343.0,39333.0,0.00798209]
[1610175256737,8.17268925,39343.0,39342.0,0.00021742]
[1610175256938,8.17268925,39343.0,39334.0,0.00798221]
[1610175257137,8.85232699,39343.0,39342.0,0.00021742]
[1610175257539,2.00770816,39335.0,39325.0,0.00798242]
[1610175257738,2.00770816,39335.0,39327.0,0.00776498]
[1610175257942,0.77215561,39330.0,39327.0,0.00776498]
[1610175258140,0.77215561,39330.0,39326.0,0.00798222]
[1610175258340,0.77214428,39331.0,39328.0,0.00798218]
[1610175258541,0.75994428,39331.0,39327.0,0.00798216]
[1610175258743,1.23525096,39329.0,39324.0,0.07747]
[1610175258941,1.23525096,39329.0,39322.0,0.13632608]
[1610175259140,0.37258939,39330.0,39322.0,0.13632608]
[1610175259141,1.23524576,39328.0,39322.0,0.13632608]
[1610175259343,1.23524576,39328.0,39323.0,0.00798208]
[1610175259543,0.5557598,39324.0,39323.0,0.00798208]
[1610175261344,0.13632608,39324.0,39323.0,0.00798208]
[1610175261545,0.12442608,39324.0,39323.0,0.00798208]
[1610175262246,3.13562608,39324.0,39323.0,0.00798208]
[1610175262447,4.06392961,39324.0,39317.0,0.00798396]
[1610175262645,1.05272961,39324.0,39317.0,0.00798396]
[1610175262846,1.70857897,39324.0,39300.0,0.02342964]
[1610175263045,3.7432,39303.0,39270.0,3.3767]
[1610175263245,3.7432,39303.0,39301.0,0.00798572]
[1610175263646,3.7432,39303.0,39290.0,0.13632608]
[1610175263845,0.01557859,39304.0,39302.0,0.00021758]
[1610175264045,0.10316,39307.0,39291.0,0.00798808]
[1610175264244,3.0404,39293.0,39291.0,0.00777049]
[1610175264645,1.60597057,39303.0,39291.0,0.00798809]
[1610175264844,0.01556432,39293.0,39291.0,0.00798809]
[1610175265047,3.6813,39292.0,39291.0,0.00798809]
[1610175265246,3.69686461,39292.0,39291.0,0.00798809]
[1610175265446,3.83319069,39292.0,39291.0,0.0002176]
[1610175266045,3.83319069,39292.0,39287.0,0.00798912]
[1610175266246,3.83319069,39292.0,39291.0,0.00021762]
[1610175266646,3.83319069,39292.0,39288.0,0.00021762]
[1610175266847,3.81762608,39292.0,39291.0,0.00021762]
[1610175267047,3.81762608,39292.0,39289.0,0.00021762]
[1610175267251,3.81762608,39292.0,39291.0,0.00021762]
[1610175267654,3.8216412,39292.0,39287.0,0.00021762]
[1610175267847,3.8216412,39292.0,39291.0,0.00021762]
[1610175268049,0.01551496,39291.0,39288.0,0.00021763]
[1610175268350,0.01551496,39291.0,39283.0,0.0974]
[1610175268550,3.82162586,39292.0,39289.0,0.00021763]
[1610175268951,0.01550125,39291.0,39284.0,0.00021763]
[1610175269151,0.0155016,39287.0,39276.0,0.09682]
[1610175269351,0.13632608,39277.0,39276.0,0.09682]
[1610175269553,3.50062608,39277.0,39276.0,0.09682]
[1610175269750,3.50062608,39277.0,39276.0,0.09703765]
[1610175269950,0.13632608,39277.0,39276.0,0.09703765]
[1610175270552,3.8348,39283.0,39276.0,0.09703765]
[1610175270754,3.8229,39283.0,39276.0,0.09703765]
[1610175270951,3.8229,39283.0,39277.0,0.00021765]
[1610175271351,3.95922608,39283.0,39282.0,0.13632608]
[1610175271753,3.95922608,39283.0,39282.0,0.13654373]
[1610175273354,3.95922608,39283.0,39282.0,0.13632608]
[1610175273954,3.94692608,39283.0,39282.0,0.13632608]
[1610175276358,0.13632608,39283.0,39282.0,0.13632608]
[1610175276758,4.2391,39296.0,39282.0,0.13632608]
[1610175276958,4.2275,39296.0,39282.0,0.13632608]
[1610175277459,4.2275,39296.0,39295.0,0.13632608]
[1610175277657,0.25648608,39299.0,39295.0,0.13632608]
[1610175278057,0.12016,39299.0,39295.0,0.13632608]
[1610175278259,0.01539877,39301.0,39297.0,3.7657]
[1610175278661,0.10316,39307.0,39297.0,3.7657]
[1610175279060,0.0153916,39308.0,39297.0,3.7657]
[1610175279261,0.01538848,39312.0,39297.0,3.7657]
[1610175279462,0.01538848,39312.0,39311.0,0.13632608]
[1610175279663,0.01538871,39319.0,39311.0,0.13632608]
[1610175279962,0.00348846,39321.0,39311.0,0.13632608]
[1610175280363,0.2934,39322.0,39311.0,0.13632608]
[1610175281062,0.09679,39324.0,39318.0,4.1815]
[1610175281264,0.5486516,39328.0,39318.0,4.1815]
[1610175281462,0.5486516,39328.0,39327.0,0.13632608]
[1610175281664,0.54873056,39334.0,39327.0,0.13632608]
[1610175282063,0.10825,39335.0,39327.0,0.13632608]
[1610175282463,0.54867754,39338.0,39331.0,3.3485]
[1610175282663,0.5487527,39339.0,39331.0,3.3485]
[1610175283165,0.54874288,39341.0,39327.0,0.13632608]
[1610175283565,0.80713865,39343.0,39340.0,0.13632608]
[1610175283764,0.80713865,39343.0,39322.0,3.8049]
[1610175283965,1.04343431,39342.0,39322.0,3.8049]
[1610175284367,0.67090256,39338.0,39322.0,3.8049]
[1610175284667,0.67103123,39336.0,39322.0,3.8049]
[1610175285069,0.67103755,39335.0,39322.0,3.8049]
[1610175285470,0.45764835,39330.0,39322.0,3.8049]
[1610175285668,0.45764835,39330.0,39316.0,0.09391]
[1610175285868,0.45766647,39328.0,39316.0,0.09391]
[1610175286070,0.44576647,39328.0,39316.0,0.09391]
[1610175286669,0.431,39325.0,39308.0,3.2587]
[1610175287070,0.431,39325.0,39309.0,0.00021747]
[1610175287468,0.431,39325.0,39321.0,0.13632608]
[1610175289269,0.4188,39325.0,39321.0,0.13632608]
[1610175289468,0.13632608,39322.0,39321.0,0.13632608]
[1610175290469,0.50903776,39322.0,39321.0,0.13632608]
[1610175290673,0.50903776,39322.0,39308.0,3.2587]
[1610175290871,0.50903776,39322.0,39306.0,0.07725]
[1610175291076,0.50903776,39322.0,39251.0,0.1556]
[1610175291283,4.144,39298.0,39258.0,3.8592]
[1610175291474,4.144,39298.0,39191.0,2.43286909]
[1610175291475,3.46169505,39298.0,39191.0,2.43286909]
[1610175291679,3.46169505,39298.0,39164.0,3.19314068]
[1610175291680,0.0827,39286.0,39172.0,2.44342173]
[1610175291878,4.0165,39238.0,39187.0,3.9252]
[1610175292072,0.10829,39266.0,39192.0,0.00799729]
[1610175292275,0.10829,39266.0,39192.0,0.0796]
[1610175292479,0.67121767,39258.0,39215.0,2.9955]
[1610175292875,0.78077767,39258.0,39193.0,0.00799819]
[1610175293075,3.1799,39227.0,39216.0,0.00021793]
[1610175293276,0.10872,39250.0,39194.0,0.00021793]
[1610175293477,3.9255,39226.0,39194.0,0.00021793]
[1610175293677,3.9255,39226.0,39209.0,0.13632608]
[1610175293875,3.9255,39226.0,39209.0,0.22606608]
[1610175294275,3.9255,39226.0,39209.0,0.08974]
[1610175295274,0.66530171,39241.0,39209.0,0.08974]
[1610175295474,3.3767,39225.0,39209.0,0.08974]
[1610175295673,3.3767,39225.0,39210.0,0.13632608]
[1610175296274,0.1197,39242.0,39210.0,0.13632608]
[1610175296476,3.0795,39238.0,39210.0,0.13632608]
[1610175296675,0.37360104,39237.0,39210.0,0.13632608]
[1610175297577,3.0795,39238.0,39210.0,0.13632608]
[1610175297776,3.0795,39238.0,39218.0,0.13632608]
[1610175298576,3.0549,39238.0,39218.0,0.13632608]
[1610175299780,3.0549,39238.0,39226.0,0.13632608]
[1610175300180,3.0549,39238.0,39226.0,0.1347694]
[1610175300981,0.13632608,39241.0,39226.0,0.1347694]
[1610175301181,2.9896,39230.0,39226.0,0.1347694]
[1610175301784,0.13632608,39227.0,39209.0,0.08974]
[1610175301984,3.3883,39213.0,39192.0,0.0796]
[1610175302184,3.387,39213.0,39192.0,0.0796]
[1610175302384,0.13632608,39227.0,39124.0,0.3179]
[1610175302588,3.7494,39207.0,39133.0,3.6311]
[1610175302784,3.7494,39207.0,39142.0,0.00021685]
[1610175302987,3.7494,39207.0,39144.0,0.565]
[1610175303785,3.7494,39207.0,39180.0,0.13632608]
[1610175304383,3.7494,39207.0,39178.0,0.11899]
[1610175304582,3.86275,39207.0,39178.0,0.11899]
[1610175304984,1.0,39203.0,39178.0,0.11899]
[1610175305184,1.0,39203.0,39144.0,0.565]
[1610175305384,0.9875,39203.0,39144.0,0.565]
[1610175305785,3.86275,39207.0,39167.0,0.13632608]
[1610175305988,3.86275,39207.0,39167.0,0.21272608]
[1610175306385,0.11335,39207.0,39167.0,0.21272608]
[1610175307789,0.13632608,39200.0,39197.0,0.13632608]
[1610175308388,0.13632608,39200.0,39180.0,3.5284]
[1610175308589,0.5737,39199.0,39180.0,3.5284]
[1610175308988,0.6932,39199.0,39180.0,3.5284]
[1610175309689,0.6932,39199.0,39194.0,0.13632608]
[1610175309888,0.1195,39199.0,39194.0,0.13632608]
[1610175310688,0.1195,39199.0,39181.0,3.5318]
[1610175311589,0.1078,39199.0,39181.0,3.5318]
[1610175311790,0.1078,39199.0,39192.0,0.13632608]
[1610175311990,0.1078,39199.0,39181.0,3.5318]
[1610175313896,0.11335,39207.0,39181.0,3.5318]
[1610175314095,3.8359,39215.0,39181.0,3.5318]
[1610175314825,3.8239,39215.0,39181.0,3.5318]
[1610175315696,3.8239,39215.0,39184.0,0.13632608]
[1610175316398,0.11752,39216.0,39184.0,0.13632608]
[1610175316598,0.2945,39224.0,39188.0,2.9585]
[1610175317800,0.2826,39224.0,39218.0,0.13632608]
[1610175318201,0.00031157,39223.0,39218.0,0.13632608]
[1610175318500,0.00031157,39223.0,39218.0,0.13476873]
[1610175319703,0.00031157,39223.0,39222.0,6.13632608]
[1610175319902,0.00031157,39223.0,39222.0,6.0]
[1610175320706,0.00031157,39223.0,39222.0,5.922134]
[1610175320904,0.27131157,39224.0,39222.0,5.922134]
[1610175321104,0.27131157,39224.0,39188.0,2.9585]
[1610175321304,0.27131157,39224.0,39184.0,0.10891]
[1610175321506,0.27131157,39224.0,39190.0,3.3396]
[1610175321705,0.27131157,39224.0,39223.0,0.13632608]
[1610175322505,0.27131157,39224.0,39221.0,0.09661]
[1610175323805,0.27131157,39224.0,39223.0,0.13632608]
[1610175324007,0.25881157,39224.0,39223.0,0.13632608]
[1610175326208,0.13632608,39234.0,39223.0,0.13632608]
[1610175326407,0.00313217,39259.0,39223.0,0.13632608]
[1610175326610,0.00313384,39260.0,39223.0,0.13632608]
[1610175326807,0.00031138,39258.0,39228.0,3.1381]
[1610175327009,0.11162,39258.0,39228.0,3.1381]
[1610175327210,0.10002,39258.0,39228.0,3.1381]
[1610175327409,0.00031133,39257.0,39228.0,3.1381]
[1610175327808,0.00031133,39257.0,39251.0,0.13632608]
[1610175328812,0.00031133,39257.0,39228.0,3.1381]
[1610175329411,0.00031133,39257.0,39221.0,0.09661]
[1610175329612,0.00031133,39257.0,39216.0,2.887]
[1610175329813,0.13632608,39237.0,39230.0,0.13632608]
[1610175330212,0.12452608,39237.0,39230.0,0.13632608]
[1610175331818,0.12452608,39237.0,39236.0,0.13632608]
[1610175332721,0.12452608,39237.0,39223.0,0.10394]
[1610175333324,0.11252608,39237.0,39223.0,0.10394]
[1610175333522,0.11252608,39237.0,39204.0,4.1841]
[1610175333922,0.00031147,39236.0,39204.0,4.1841]
[1610175334523,0.00311944,39237.0,39204.0,4.1841]
[1610175334724,0.00031151,39235.0,39204.0,4.1841]
[1610175334923,0.00031151,39236.0,39204.0,4.1841]
[1610175335124,0.00031151,39234.0,39204.0,4.1841]
[1610175335525,0.00031151,39237.0,39204.0,4.1841]
[1610175335723,0.00031151,39233.0,39204.0,4.1841]
[1610175335926,0.00031149,39236.0,39219.0,0.13632608]
[1610175336226,0.00031149,39238.0,39219.0,0.13632608]
[1610175336426,3.49191149,39239.0,39219.0,0.13632608]
[1610175336827,0.0003115,39238.0,39219.0,0.13632608]
[1610175337828,0.13632608,39220.0,39219.0,0.13632608]
[1610175338027,0.24348608,39220.0,39219.0,0.13632608]
[1610175338428,0.24348608,39220.0,39204.0,4.1841]
[1610175339229,0.24348608,39220.0,39138.0,0.1556]
[1610175339431,3.587,39217.0,39175.0,3.1908]
[1610175339631,3.575,39217.0,39175.0,3.1908]
[1610175340032,3.575,39217.0,39196.0,0.13632608]
[1610175340033,0.00031161,39216.0,39196.0,0.13632608]
[1610175340234,0.00031161,39216.0,39175.0,3.1908]
[1610175342038,0.00031161,39216.0,39196.0,0.13632608]
[1610175342637,3.56311161,39217.0,39175.0,3.1908]
[1610175342838,3.56623765,39217.0,39175.0,3.1908]
[1610175343240,0.00312479,39216.0,39175.0,3.1908]
[1610175343541,0.00312887,39214.0,39175.0,3.1908]
[1610175343941,0.13632608,39176.0,39175.0,3.1908]
[1610175344141,0.13632608,39176.0,39172.0,0.13632608]
[1610175344342,0.13632608,39176.0,39171.0,0.07569]
[1610175344741,0.13632608,39176.0,39172.0,0.00021706]
[1610175344942,0.13632608,39176.0,39171.0,0.07569]
[1610175345742,0.2848,39191.0,39171.0,0.07569]
[1610175345942,0.2848,39191.0,39184.0,0.13632608]
[1610175346542,0.2848,39191.0,39171.0,0.07569]
[1610175347442,0.2848,39191.0,39159.0,4.0142]
[1610175347844,0.2848,39191.0,39160.0,0.0002171]
[1610175348047,0.2848,39191.0,39160.0,0.10109127]
[1610175348447,0.00314523,39190.0,39160.0,0.10109127]
[1610175348646,0.00314523,39190.0,39161.0,0.00021713]
[1610175348846,0.00314228,39187.0,39161.0,0.00021713]
[1610175349445,0.00314228,39187.0,39160.0,0.09308]
[1610175349648,0.00314923,39183.0,39160.0,0.09308]
[1610175349946,0.00314923,39184.0,39163.0,0.13632608]
[1610175350446,0.00315888,39180.0,39163.0,0.13632608]
[1610175351745,0.45128701,39182.0,39163.0,0.13632608]
[1610175351746,0.00315853,39179.0,39163.0,0.13632608]
[1610175351946,0.13632608,39164.0,39163.0,0.13632608]
[1610175352547,0.54129216,39183.0,39163.0,0.13632608]
[1610175352750,0.54192081,39185.0,39163.0,0.13632608]
[1610175353349,0.54192081,39185.0,39164.0,0.00021714]
[1610175353751,0.81865678,39191.0,39164.0,0.00021714]
[1610175353948,0.81865678,39191.0,39179.0,0.13632608]
[1610175354149,0.91625199,39190.0,39179.0,0.13632608]
[1610175354551,0.54225332,39190.0,39179.0,0.13632608]
[1610175354751,0.54225332,39190.0,39172.0,0.0756]
[1610175354955,0.54193521,39187.0,39172.0,0.0756]
[1610175355352,0.00767056,39182.0,39172.0,0.0756]
[1610175355655,0.00766848,39181.0,39172.0,0.0756]
[1610175355955,0.13632608,39173.0,39172.0,0.0756]
[1610175356756,0.13632608,39173.0,39160.0,0.09308]
[1610175356955,0.13632608,39173.0,39150.0,3.4484]
[1610175357355,0.13632608,39173.0,39151.0,0.000217]
[1610175357559,0.13632608,39173.0,39151.0,0.104887]
[1610175357956,0.12442608,39178.0,39172.0,0.13632608]
[1610175359958,0.00767171,39185.0,39173.0,0.00021698]
[1610175360161,0.00766781,39184.0,39173.0,0.00021698]
[1610175360459,0.00766513,39182.0,39173.0,0.00021698]
[1610175360859,0.00766177,39181.0,39173.0,0.00021698]
[1610175361260,0.65638708,39187.0,39173.0,0.00021698]
[1610175361860,0.65638708,39187.0,39171.0,0.00020808]
[1610175362061,0.13632608,39172.0,39168.0,0.13632608]
[1610175362665,0.13632608,39172.0,39169.0,0.00020808]
[1610175363462,0.13632608,39172.0,39169.0,0.00800378]
[1610175364263,0.12442608,39172.0,39169.0,0.00800378]
[1610175365265,0.12442608,39172.0,39169.0,0.00020808]
[1610175365466,0.12442608,39172.0,39170.0,0.00020808]
[1610175366068,0.12442608,39172.0,39169.0,0.00800381]
[1610175366269,0.12442608,39172.0,39171.0,0.00020808]
[1610175366469,0.07378,39184.0,39171.0,0.00020808]
[1610175366670,0.07378,39184.0,39175.0,3.0395]
[1610175367071,0.07378,39184.0,39176.0,0.00020808]
[1610175367271,0.06228,39184.0,39176.0,0.00020807]
[1610175367571,0.08442,39192.0,39176.0,0.00020807]
[1610175367772,0.75084253,39194.0,39176.0,0.00020807]
[1610175367970,1.5,39238.0,39176.0,0.00020807]
[1610175367971,0.75147476,39196.0,39176.0,0.00020807]
[1610175368171,0.75147476,39196.0,39180.0,0.13632608]
[1610175368772,0.75206775,39195.0,39181.0,0.00020807]
[1610175368971,0.82846775,39195.0,39181.0,0.00020807]
[1610175369372,0.45043276,39195.0,39181.0,0.00020807]
[1610175369773,0.37403164,39194.0,39181.0,0.00020807]
[1610175370074,0.13632608,39191.0,39190.0,0.13632608]
[1610175370475,0.12402608,39191.0,39190.0,0.13497575]
[1610175372175,0.12402608,39191.0,39190.0,0.00020803]
[1610175372577,0.12402608,39191.0,39176.0,0.00800221]
[1610175372979,0.49805215,39191.0,39190.0,0.00020805]
[1610175373179,0.49805215,39191.0,39177.0,0.00800259]
[1610175373378,0.49805215,39191.0,39165.0,0.01761003]
[1610175373379,0.49805215,39191.0,39190.0,0.00020805]
[1610175373679,0.36173752,39190.0,39178.0,0.00800293]
[1610175373879,0.36173752,39190.0,39166.0,0.00779482]
[1610175374280,0.36173752,39190.0,39165.0,0.0256129]
[1610175374480,0.36173752,39190.0,39167.0,0.00800353]
[1610175374680,0.36173752,39190.0,39166.0,0.00800396]
[1610175374880,0.75250783,39190.0,39166.0,0.00800396]
[1610175375081,0.75250783,39190.0,39168.0,0.00800391]
[1610175375283,0.75242726,39189.0,39165.0,0.01761355]
[1610175375480,0.75273912,39189.0,39164.0,2.8878]
[1610175375682,0.75200651,39188.0,39164.0,2.8878]
[1610175375880,0.75200651,39188.0,39166.0,0.00800467]
[1610175376083,0.13632608,39167.0,39165.0,0.0080051]
[1610175376282,0.13632608,39167.0,39164.0,2.8878]
[1610175376682,0.12472608,39167.0,39166.0,0.00800499]
[1610175376882,0.12472608,39167.0,39165.0,0.00800462]
[1610175377082,0.12472608,39167.0,39166.0,0.0080047]
[1610175377684,0.12472608,39167.0,39163.0,0.13632608]
[1610175377685,0.12472608,39167.0,39165.0,0.00800453]
[1610175377886,0.12472608,39167.0,39166.0,0.00800457]
[1610175378285,3.35032608,39167.0,39166.0,0.00800457]
[1610175378486,3.35032608,39167.0,39163.0,0.00800592]
[1610175378685,3.35032608,39167.0,39166.0,0.00020814]
[1610175378885,3.35032608,39167.0,39143.0,0.08821]
[1610175379087,0.37425501,39166.0,39164.0,0.00020819]
[1610175379286,0.37425501,39166.0,39152.0,0.00800784]
[1610175379486,4.0051,39157.0,39144.0,0.00779957]
[1610175379687,4.0051,39157.0,39153.0,0.0002082]
[1610175379886,3.9929,39157.0,39153.0,0.0002082]
[1610175380086,0.13632608,39154.0,39134.0,0.13632608]
[1610175380489,0.13632608,39154.0,39135.0,0.00020822]
[1610175381387,0.13632608,39154.0,39136.0,0.00020822]
[1610175381890,0.13632608,39154.0,39135.0,0.00020822]
[1610175382089,0.13632608,39136.0,39134.0,0.13632608]
[1610175382689,0.13632608,39136.0,39135.0,0.00020822]
[1610175382889,0.12482608,39136.0,39135.0,0.00020822]
[1610175383292,0.11144,39147.0,39135.0,0.00020822]
[1610175384192,0.11144,39147.0,39146.0,0.13632608]